{"text_format":"1","workbook":"xlsx","n_sheets":3,"sheets":["Tabella","Foglio1","Operativo"],"not_rendered":{"charts":0,"images":0,"macros":1,"external_links":0,"defined_names":0,"comments":0,"pivot_tables":0},"unopened":[],"bounds":{"document_bytes":16777216,"sheet_cells":100000,"rows_first":2000,"rows_last":500,"rows_between":2000,"halvings":0,"cell_chars":16384,"cell_head_chars":4096},"cells_cut":0,"cells_raw":0,"read":"whole","date_system":"1900"}

{"sheet":"Tabella","index":0,"n_rows":123,"n_cols":10,"rows_kept":123,"cut":false,"hidden":true,"merged":[]}
["N","ATTIVITÀ","UM","Coeff. Adottato","Esclusioni/Validità","Annotazioni prime","Annotazioni seconde","G","limiti","formula\n1=normale\n0 =valore con DM 2016"]
[1,"Stabilimenti ed impianti ove si producono e/o impiegano gas infiammabili e/o comburenti con quantità globali in ciclo superiori a 25Nmc/h","superficie in mq",358.8,null,"N.B.: la superficie deve essere solo la somma delle aree lorde di piano diverse. Le tettoie aperte almeno su un lato vanno conteggiate al 50%.","Qualora ci fossero piani ripetuti uguali, quindi non sommati nella superficie, per ognuno di essi si valuterà una superficie aggiuntiva pari al 10% di quella del piano.",0.95,0,1]
["2.1","Impianti di compressione o di decompressione dei gas infiammabili e/o comburenti potenzialità superiore a 50 Nmc/h, con esclusione dei sistemi di riduzione del gas naturale inseriti nelle reti di distribuzione con pressione di esercizio non superiore a 0,5 MPa","superficie in mq",156,"vale solo sino a 12 bar (per valori maggiori si veda 2.2 e 2.3)","N.B.: la superficie deve essere solo la somma delle aree lorde di piano diverse. Le tettoie aperte almeno su un lato vanno conteggiate al 50%.","Qualora ci fossero piani ripetuti uguali, quindi non sommati nella superficie, per ognuno di essi si valuterà una superficie aggiuntiva pari al 10% di quella del piano.",0.95,0,1]
["2.2","Impianti di compressione o di decompressione dei gas infiammabili e/o comburenti con potenzialità superiore a 50 Nmc/h, con esclusione dei sistemi di riduzione del gas naturale inseriti nelle reti di distribuzione con pressione di esercizio non superiore a 0,5 MPa","superficie in mq",312,"vale da 12,1 a 24 bar (per valori maggiori si veda 2.3)","N.B.: la superficie deve essere solo la somma delle aree lorde di piano diverse. Le tettoie aperte almeno su un lato vanno conteggiate al 50%.","Qualora ci fossero piani ripetuti uguali, quindi non sommati nella superficie, per ognuno di essi si valuterà una superficie aggiuntiva pari al 10% di quella del piano.",0.95,0,1]
["2.3","Impianti di compressione o di decompressione dei gas infiammabili e/o comburenti con potenzialità superiore a 50 Nm3/h, con esclusione dei sistemi di riduzione del gas naturale inseriti nelle reti di distribuzione con pressione di esercizio non superiore a 0,5 MPa","superficie in mq",468,"vale per pressioni superiori a  24 bar ","N.B.: la superficie deve essere solo la somma delle aree lorde di piano diverse. Le tettoie aperte almeno su un lato vanno conteggiate al 50%.","Qualora ci fossero piani ripetuti uguali, quindi non sommati nella superficie, per ognuno di essi si valuterà una superficie aggiuntiva pari al 10% di quella del piano.",0.95,0,1]
["3.a.1","Impianti di riempimento, depositi, rivendite di gas infiammabili in recipienti mobili:\na) compressi con capacità geometrica complessiva superiore o uguale a 0,75 mc","capacità in Nmc/h",468,"vale solo per impianti, per depositi e rivendite si veda 3.a.2  ",null,null,0.95,0,1]
["3.a.2","Impianti di riempimento, depositi, rivendite di gas infiammabili in recipienti mobili:\na) compressi con capacità geometrica complessiva superiore o uguale a 0,75 mc","superficie in mq",468,"vale solo per depositi e rivendite, per impianti si veda 3.a.1 ",null,"Se l'altezza del deposito  supera i tre metri, per ogni quota di tre metri o frazione, si sommerà la corrispondente area in pianta, valutata al 10 %, nel valore della superficie che costituisce il valore da immettere nella relativa cella.",0.95,0,1]
["3.b.1","Impianti di riempimento, depositi, rivendite, di gas infiammabili in recipienti mobili:\nb) disciolti o liquefatti per quantitativi in massa complessivi superiori o uguali a 75 kg","massa in kg",468,"vale solo per impianti, per depositi e rivendite si veda 3.b.2 ",null,null,0.95,0,1]
["3.b.2","Impianti di riempimento, depositi, rivendite, di\ngas infiammabili in recipienti mobili:\nb) disciolti o liquefatti per quantitativi in massa complessivi superiori o uguali a 75 kg","superficie in mq",358.8,"vale solo per depositi e rivendite, per impianti si veda 3.b.1","N.B.: la superficie deve essere solo la somma delle aree lorde di piano diverse. Le tettoie aperte almeno su un lato vanno conteggiate al 50%.","Qualora ci fossero piani ripetuti uguali, quindi non sommati nella superficie, per ognuno di essi si valuterà una superficie aggiuntiva pari al 10% di quella del piano.\nSe l'altezza del deposito  supera i tre metri, per ogni quota di tre metri o frazione, si sommerà la corrispondente area in pianta, valutata al 10 %, nel valore della superficie che costituisce il valore da immettere nella relativa cella.",0.95,0,1]
["4.a","Depositi di gas infiammabili in serbatoi fissi:\na) compressi per capacità geometrica complessiva superiore o uguale a 0,75 mc","capacità geometrica in mc",468,null,null,null,0.95,0,1]
["4.b","Depositi di gas infiammabili in serbatoi fissi:\nb) disciolti o liquefatti per capacità geometrica complessiva superiore o uguale a 0,3 mc","capacità geometrica in mc",468,null,null,null,0.95,0,1]
[5,"Depositi di gas comburenti compressi e/o\nliquefatti in serbatoi fissi e/o recipienti mobili per capacità geometrica complessiva superiore o uguale a 3 mc","capacità geometrica in mc",468,null,null,null,0.95,0,1]
["6.1","Reti di trasporto e di distribuzione di gas infiammabili, compresi quelli di origine petrolifera o chimica, con esclusione delle reti di distribuzione e dei relativi impianti con pressione di esercizio non superiore a 0,5 MPa","estensione rete in m",468,"è solo una stima, per valori economici vedere 6.2",null,null,0.95,0,1]
["6.2","Reti di trasporto e di distribuzione di gas infiammabili, compresi quelli di origine petrolifera o chimica, con esclusione delle reti di distribuzione e dei relativi impianti con pressione di esercizio non superiore a 0,5 MPa","valore opera in €",468,"calcola CP in funzione del valore immesso secondo D.M. 2016",null,null,0.95,0,0]
[7,"Centrali di produzione di idrocarburi liquidi e gassosi e di stoccaggio sotterraneo di gas naturale, piattaforme fisse e strutture fisse assimilabili, di perforazione e/o produzione di idrocarburi di cui al decreto del Presidente della Repubblica 24 maggio 1979, n. 886 ed al decreto legislativo 25 novembre 1996, n. 624","Nmc/h",468,null,null,null,0.95,0,1]
["8.1","Oleodotti con diametro superiore a 100 mm","estensione rete in m",468,"è solo una stima, per valori economici vedere 8.2",null,null,0.95,0,1]
["8.2","Oleodotti con diametro superiore a 100 mm","valore opera in €",468,"calcola CP in funzione del valore immesso secondo D.M. 2016",null,null,0.95,0,0]
[9,"Officine e laboratori con saldatura e taglio dei\nmetalli utilizzanti gas infiammabili e/o comburenti, con oltre 5 addetti alla mansione specifica di saldatura o taglio","superficie in mq",468,null,"N.B.: la superficie deve essere solo la somma delle aree lorde di piano diverse. Le tettoie aperte almeno su un lato vanno conteggiate al 50%.","Qualora ci fossero piani ripetuti uguali, quindi non sommati nella superficie, per ognuno di essi si valuterà una superficie aggiuntiva pari al 10% di quella del piano.",0.95,0,1]
["10.1","Stabilimenti ed impianti ove si producono e/o impiegano, liquidi infiammabili e/o combustibili con punto di infiammabilità fino a 125 °C, con quantitativi globali in ciclo e/o in deposito superiori a 1 mc","superficie in mq",468,"vale solo per produzione e/o per utilizzo, per depositi si veda 10.2","N.B.: la superficie deve essere solo la somma delle aree lorde di piano diverse. Le tettoie aperte almeno su un lato vanno conteggiate al 50%.","Qualora ci fossero piani ripetuti uguali, quindi non sommati nella superficie, per ognuno di essi si valuterà una superficie aggiuntiva pari al 10% di quella del piano.",0.95,0,1]
["10.2","Stabilimenti ed impianti ove si producono e/o\nimpiegano, liquidi infiammabili e/o combustibili con punto di infiammabilità fino a 125 °C, con quantitativi globali in ciclo e/o in deposito superiori a 1 mc","superficie in mq",358.8,"vale solo per depositi, per produzione e/o utilizzo si veda 10.1","N.B.: la superficie deve essere solo la somma delle aree lorde di piano diverse. Le tettoie aperte almeno su un lato vanno conteggiate al 50%.","Qualora ci fossero piani ripetuti uguali, quindi non sommati nella superficie, per ognuno di essi si valuterà una superficie aggiuntiva pari al 10% di quella del piano.\nSe l'altezza del deposito  supera i tre metri, per ogni quota di tre metri o frazione, si sommerà la corrispondente area in pianta, valutata al 10 %, nel valore della superficie che costituisce il valore da immettere nella relativa cella.",0.95,0,1]
["11.1","Stabilimenti ed impianti per la preparazione di oli lubrificanti, oli diatermici e simili, con punto di infiammabilità superiore a 125 °C, con quantitativi globali in ciclo e/o in deposito superiori a 5 mc","superficie in mq",468,"vale solo per produzione e/o per utilizzo, per depositi si veda 11.2","N.B.: la superficie deve essere solo la somma delle aree lorde di piano diverse. Le tettoie aperte almeno su un lato vanno conteggiate al 50%.","Qualora ci fossero piani ripetuti uguali, quindi non sommati nella superficie, per ognuno di essi si valuterà una superficie aggiuntiva pari al 10% di quella del piano.",0.95,0,1]
["11.2","Stabilimenti ed impianti per la preparazione di oli lubrificanti, oli diatermici e simili, con punto di infiammabilità superiore a 125 °C, con quantitativi globali in ciclo e/o in deposito superiori a 5 m3","superficie in mq",358.8,"vale solo per depositi, per produzione e/o utilizzo si veda 11.1","N.B.: la superficie deve essere solo la somma delle aree lorde di piano diverse. Le tettoie aperte almeno su un lato vanno conteggiate al 50%.","Qualora ci fossero piani ripetuti uguali, quindi non sommati nella superficie, per ognuno di essi si valuterà una superficie aggiuntiva pari al 10% di quella del piano.\nSe l'altezza del deposito  supera i tre metri, per ogni quota di tre metri o frazione, si sommerà la corrispondente area in pianta, valutata al 10 %, nel valore della superficie che costituisce il valore da immettere nella relativa cella.",0.95,0,1]
[12,"Depositi e/o rivendite di liquidi infiammabili e/o combustibili e/o oli lubrificanti, diatermici, di qualsiasi derivazione, di capacità geometrica complessiva superiore a 1 mc","superficie in mq",358.8,null,"N.B.: la superficie deve essere solo la somma delle aree lorde di piano diverse. Le tettoie aperte almeno su un lato vanno conteggiate al 50%.","Qualora ci fossero piani ripetuti uguali, quindi non sommati nella superficie, per ognuno di essi si valuterà una superficie aggiuntiva pari al 10% di quella del piano.\nSe l'altezza del deposito  supera i tre metri, per ogni quota di tre metri o frazione, si sommerà la corrispondente area in pianta, valutata al 10 %, nel valore della superficie che costituisce il valore da immettere nella relativa cella.",0.95,0,1]
["13.a.1","Impianti fissi di distribuzione carburanti per\nl’autotrazione, la nautica e l’aeronautica; contenitori - distributori rimovibili di carburanti liquidi:\na) Impianti di distribuzione carburanti liquidi ","ad erogatore",312000,"vale solo per impianti fissi carburanti liquidi, per distributori mobili si veda 13.a.2, per  distributori fissi si veda 13.b",null,null,0.95,0,1]
["13.a.2","Impianti fissi di distribuzione carburanti per l’autotrazione, la nautica e l’aeronautica; contenitori - distributori rimovibili di carburanti liquidi:\na) Impianti di distribuzione carburanti liquidi ","ad erogatore",156000,"vale solo per distributori mobili carburanti liquidi, per impianti fissi si veda 13.a.1, per distributori fissi si veda 13.b.",null,null,0.95,0,1]
["13.b","Impianti fissi di distribuzione carburanti per\nl’autotrazione, la nautica e l’aeronautica; contenitori - distributori rimovibili di carburanti liquidi:\nb) Impianti fissi di distribuzione carburanti gassosi e di tipo misto (liquidi e gassosi)","ad erogatore",546000,"vale solo per distributori fissi carburanti  gassosi e misti liquidi e gassosi, per impianti fissi si veda 13.a.1, per distributori mobili si veda 13.a.2. ",null,null,0.95,0,1]
[14,"Officine o laboratori per la verniciatura con vernici infiammabili e/o combustibili con oltre 5 addetti","superficie in mq",468,null,"N.B.: la superficie deve essere solo la somma delle aree lorde di piano diverse. Le tettoie aperte almeno su un lato vanno conteggiate al 50%.","Qualora ci fossero piani ripetuti uguali, quindi non sommati nella superficie, per ognuno di essi si valuterà una superficie aggiuntiva pari al 10% di quella del piano.",0.95,0,1]
[15,"Depositi e/o rivendite di alcoli con concentrazione superiore al 60% in volume di capacità geometrica superiore a 1 mc","superficie in mq",358.8,null,"N.B.: la superficie deve essere solo la somma delle aree lorde di piano diverse. Le tettoie aperte almeno su un lato vanno conteggiate al 50%.","Qualora ci fossero piani ripetuti uguali, quindi non sommati nella superficie, per ognuno di essi si valuterà una superficie aggiuntiva pari al 10% di quella del piano.\nSe l'altezza del deposito  supera i tre metri, per ogni quota di tre metri o frazione, si sommerà la corrispondente area in pianta, valutata al 10 %, nel valore della superficie che costituisce il valore da immettere nella relativa cella.",0.95,0,1]
["16.1","Stabilimenti di estrazione con solventi infiammabili e raffinazione di oli e grassi vegetali ed animali, con quantitativi globali di solventi in ciclo e/o in deposito superiori a 0,5 mc","superficie in mq",468,"vale solo per lavorazioni, per deposito si veda 16.2","N.B.: la superficie deve essere solo la somma delle aree lorde di piano diverse. Le tettoie aperte almeno su un lato vanno conteggiate al 50%.","Qualora ci fossero piani ripetuti uguali, quindi non sommati nella superficie, per ognuno di essi si valuterà una superficie aggiuntiva pari al 10% di quella del piano.",0.95,0,1]
["16.2","Stabilimenti di estrazione con solventi infiammabili e raffinazione di oli e grassi vegetali ed animali, con quantitativi globali di solventi in ciclo e/o in deposito superiori a 0,5 mc","superficie in mq",358.8,"vale solo per deposito, per lavorazioni si veda 16.1","N.B.: la superficie deve essere solo la somma delle aree lorde di piano diverse. Le tettoie aperte almeno su un lato vanno conteggiate al 50%.","Qualora ci fossero piani ripetuti uguali, quindi non sommati nella superficie, per ognuno di essi si valuterà una superficie aggiuntiva pari al 10% di quella del piano.\nSe l'altezza del deposito  supera i tre metri, per ogni quota di tre metri o frazione, si sommerà la corrispondente area in pianta, valutata al 10 %, nel valore della superficie che costituisce il valore da immettere nella relativa cella.",0.95,0,1]
["17.1","Stabilimenti ed impianti ove si producono, impiegano o detengono sostanze esplodenti classificate come tali dal regolamento di esecuzione del testo unico delle leggi di pubblica sicurezza approvato con regio decreto 6 maggio 1940, n. 635, e successive modificazioni ed integrazioni","superficie in mq",468,"vale solo per lavorazioni, per deposito si veda 17.2","N.B.: la superficie deve essere solo la somma delle aree lorde di piano diverse. Le tettoie aperte almeno su un lato vanno conteggiate al 50%.","Qualora ci fossero piani ripetuti uguali, quindi non sommati nella superficie, per ognuno di essi si valuterà una superficie aggiuntiva pari al 10% di quella del piano.",0.95,0,1]
["17.2","Stabilimenti ed impianti ove si producono, impiegano o detengono sostanze esplodenti classificate come tali dal regolamento di esecuzione del testo unico delle leggi di pubblica sicurezza approvato con regio decreto 6 maggio 1940, n. 635, e successive modificazioni ed integrazioni","superficie in mq",358.8,"vale solo per deposito, per lavorazioni si veda 17.1","N.B.: la superficie deve essere solo la somma delle aree lorde di piano diverse. Le tettoie aperte almeno su un lato vanno conteggiate al 50%.","Qualora ci fossero piani ripetuti uguali, quindi non sommati nella superficie, per ognuno di essi si valuterà una superficie aggiuntiva pari al 10% di quella del piano.\nSe l'altezza del deposito  supera i tre metri, per ogni quota di tre metri o frazione, si sommerà la corrispondente area in pianta, valutata al 10 %, nel valore della superficie che costituisce il valore da immettere nella relativa cella.",0.95,0,1]
[18,"Esercizi di minuta vendita e/o depositi di sostanze esplodenti classificate come tali dal regolamento di esecuzione del testo unico delle leggi di pubblica sicurezza approvato con regio decreto 6 maggio 1940, n. 635, e successive modificazioni ed integrazioni. Esercizi di vendita di artifici pirotecnici declassificati in «libera vendita» con quantitativi complessivi in vendita e/o deposito superiori a 500 kg, comprensivi degli imballaggi","superficie in mq",468,null,"N.B.: la superficie deve essere solo la somma delle aree lorde di piano diverse. Le tettoie aperte almeno su un lato vanno conteggiate al 50%.","Qualora ci fossero piani ripetuti uguali, quindi non sommati nella superficie, per ognuno di essi si valuterà una superficie aggiuntiva pari al 10% di quella del piano.",0.95,0,1]
["19.1","Stabilimenti ed impianti ove si producono, impiegano o detengono sostanze instabili che possono dar luogo da sole a reazioni pericolose in presenza o non di catalizzatori ivi compresi i perossidi organici","superficie in mq",468,"vale solo per lavorazioni, per deposito si veda 19.2","N.B.: la superficie deve essere solo la somma delle aree lorde di piano diverse. Le tettoie aperte almeno su un lato vanno conteggiate al 50%.","Qualora ci fossero piani ripetuti uguali, quindi non sommati nella superficie, per ognuno di essi si valuterà una superficie aggiuntiva pari al 10% di quella del piano.",0.95,0,1]
["19.2","Stabilimenti ed impianti ove si producono, impiegano o detengono sostanze instabili che possono dar luogo da sole a reazioni pericolose in presenza o non di catalizzatori ivi compresi i perossidi organici","superficie in mq",358.8,"vale solo per deposito, per lavorazioni si veda 19.1","N.B.: la superficie deve essere solo la somma delle aree lorde di piano diverse. Le tettoie aperte almeno su un lato vanno conteggiate al 50%.","Qualora ci fossero piani ripetuti uguali, quindi non sommati nella superficie, per ognuno di essi si valuterà una superficie aggiuntiva pari al 10% di quella del piano.\nSe l'altezza del deposito  supera i tre metri, per ogni quota di tre metri o frazione, si sommerà la corrispondente area in pianta, valutata al 10 %, nel valore della superficie che costituisce il valore da immettere nella relativa cella.",0.95,0,1]
["20.1","Stabilimenti ed impianti ove si producono, impiegano nitrati di ammonio, di metalli alcalino e alcalino terrosi, nitrati di piombo e perossidfi organici. ","superficie in mq",468,"vale solo per lavorazioni, per deposito si veda 20.2","N.B.: la superficie deve essere solo la somma delle aree lorde di piano diverse. Le tettoie aperte almeno su un lato vanno conteggiate al 50%.","Qualora ci fossero piani ripetuti uguali, quindi non sommati nella superficie, per ognuno di essi si valuterà una superficie aggiuntiva pari al 10% di quella del piano.",0.95,0,1]
["20.2","Stabilimenti ed impianti ove si producono, impiegano nitrati di ammonio, di metalli alcalino e alcalino terrosi, nitrati di piombo e perossidfi organici. ","superficie in mq",358.8,"vale solo per deposito, per lavorazioni si veda 20.1","N.B.: la superficie deve essere solo la somma delle aree lorde di piano diverse. Le tettoie aperte almeno su un lato vanno conteggiate al 50%.","Qualora ci fossero piani ripetuti uguali, quindi non sommati nella superficie, per ognuno di essi si valuterà una superficie aggiuntiva pari al 10% di quella del piano.\nSe l'altezza del deposito  supera i tre metri, per ogni quota di tre metri o frazione, si sommerà la corrispondente area in pianta, valutata al 10 %, nel valore della superficie che costituisce il valore da immettere nella relativa cella.",0.95,0,1]
["21.1","Stabilimenti ed impianti ove si producono, impiegano o detengono sostanze soggette all’accensione spontanea e/o sostanze che a contatto con l’acqua sviluppano gas infiammabili. ","superficie in mq",468,"Vale per stabilimenti, lavorazioni, sono esclusi i soli depositi, per questi si veda 21.2.","N.B.: la superficie deve essere solo la somma delle aree lorde di piano diverse. Le tettoie aperte almeno su un lato vanno conteggiate al 50%.","Qualora ci fossero piani ripetuti uguali, quindi non sommati nella superficie, per ognuno di essi si valuterà una superficie aggiuntiva pari al 10% di quella del piano.",0.95,0,1]
["21.2","Stabilimenti ed impianti ove si producono, impiegano o detengono sostanze soggette all’accensione spontanea e/o sostanze che a contatto con l’acqua sviluppano gas infiammabili. ","superficie in mq",468,"Vale solo per i depositi, per stabilimenti e lavorazioni si veda 21.1.","N.B.: la superficie deve essere solo la somma delle aree lorde di piano diverse. Le tettoie aperte almeno su un lato vanno conteggiate al 50%.","Qualora ci fossero piani ripetuti uguali, quindi non sommati nella superficie, per ognuno di essi si valuterà una superficie aggiuntiva pari al 10% di quella del piano.\nSe l'altezza del deposito  supera i tre metri, per ogni quota di tre metri o frazione, si sommerà la corrispondente area in pianta, valutata al 10 %, nel valore della superficie che costituisce il valore da immettere nella relativa cella.",0.95,0,1]
[22,"Stabilimenti ed impianti ove si produce acqua ossigenata con concentrazione superiore al 60% di perossido di idrogeno ","superficie in mq",468,null,"N.B.: la superficie deve essere solo la somma delle aree lorde di piano diverse. Le tettoie aperte almeno su un lato vanno conteggiate al 50%.","Qualora ci fossero piani ripetuti uguali, quindi non sommati nella superficie, per ognuno di essi si valuterà una superficie aggiuntiva pari al 10% di quella del piano.",0.95,0,1]
[23,"Stabilimenti ed impianti ove si produce, impiega e/o detiene fosforo e/o sesquisolfuro di fosforo ","superficie in mq",468,null,"N.B.: la superficie deve essere solo la somma delle aree lorde di piano diverse. Le tettoie aperte almeno su un lato vanno conteggiate al 50%.","Qualora ci fossero piani ripetuti uguali, quindi non sommati nella superficie, per ognuno di essi si valuterà una superficie aggiuntiva pari al 10% di quella del piano.",0.95,0,1]
["24.1","Stabilimenti ed impianti per la macinazione e la raffinazione dello zolfo; depositi di zolfo con potenzialità superiore a 10.000 kg ","superficie in mq",468,"Vale per stabilimenti, lavorazioni, sono esclusi i soli depositi, per questi si veda 24.2.","N.B.: la superficie deve essere solo la somma delle aree lorde di piano diverse. Le tettoie aperte almeno su un lato vanno conteggiate al 50%.","Qualora ci fossero piani ripetuti uguali, quindi non sommati nella superficie, per ognuno di essi si valuterà una superficie aggiuntiva pari al 10% di quella del piano.",0.95,0,1]
["24.2","Stabilimenti ed impianti per la macinazione e la raffinazione dello zolfo; depositi di zolfo con potenzialità superiore a 10.000 kg ","superficie in mq",358.8,"Vale solo per i depositi, per stabilimenti e lavorazioni si veda 24.1.","N.B.: la superficie deve essere solo la somma delle aree lorde di piano diverse. Le tettoie aperte almeno su un lato vanno conteggiate al 50%.","Qualora l'altezza del deposito  superasse i tre metri, per ogni quota di tre metri o frazione, si sommerà la corrisponde area in pianta nella superficie che costituisce il valore da immettere nella relativa cella.\nSe l'altezza del deposito  supera i tre metri, per ogni quota di tre metri o frazione, si sommerà la corrispondente area in pianta, valutata al 10 %, nel valore della superficie che costituisce il valore da immettere nella relativa cella.",0.95,0,1]
["25.1","Fabbriche di fiammiferi; depositi di fiammiferi con quantitativi in massa superiori a 500 kg ","superficie in mq",468,"Vale per stabilimenti, lavorazioni, sono esclusi i soli depositi, per questi si veda 25.2.","N.B.: la superficie deve essere solo la somma delle aree lorde di piano diverse. Le tettoie aperte almeno su un lato vanno conteggiate al 50%.","Qualora ci fossero piani ripetuti uguali, quindi non sommati nella superficie, per ognuno di essi si valuterà una superficie aggiuntiva pari al 10% di quella del piano.",0.95,0,1]
["25.2","Fabbriche di fiammiferi; depositi di fiammiferi con quantitativi in massa superiori a 500 kg ","superficie in mq",358.8,"Vale solo per i depositi, per stabilimenti e lavorazioni si veda 25.1.","N.B.: la superficie deve essere solo la somma delle aree lorde di piano diverse. Le tettoie aperte almeno su un lato vanno conteggiate al 50%.","Qualora ci fossero piani ripetuti uguali, quindi non sommati nella superficie, per ognuno di essi si valuterà una superficie aggiuntiva pari al 10% di quella del piano.\nSe l'altezza del deposito  supera i tre metri, per ogni quota di tre metri o frazione, si sommerà la corrispondente area in pianta, valutata al 10 %, nel valore della superficie che costituisce il valore da immettere nella relativa cella.",0.95,0,1]
[26,"Stabilimenti ed impianti ove si produce, impiega o detiene magnesio, elektron e altre leghe ad alto tenore di magnesio ","superficie in mq",468,null,"N.B.: la superficie deve essere solo la somma delle aree lorde di piano diverse. Le tettoie aperte almeno su un lato vanno conteggiate al 50%.","Qualora ci fossero piani ripetuti uguali, quindi non sommati nella superficie, per ognuno di essi si valuterà una superficie aggiuntiva pari al 10% di quella del piano.",0.95,0,1]
["27.1","Mulini per cereali ed altre macinazioni con potenzialità giornaliera superiore a 20.000 kg; depositi di cereali e di altre macinazioni con quantitativi in massa superiori a 50.000 kg  ","superficie in mq",468,"Vale per stabilimenti, lavorazioni, sono esclusi i soli depositi, per questi si veda 27.2.","N.B.: la superficie deve essere solo la somma delle aree lorde di piano diverse. Le tettoie aperte almeno su un lato vanno conteggiate al 50%.","Qualora ci fossero piani ripetuti uguali, quindi non sommati nella superficie, per ognuno di essi si valuterà una superficie aggiuntiva pari al 10% di quella del piano.",0.95,0,1]
["27.2","Mulini per cereali ed altre macinazioni con potenzialità giornaliera superiore a 20.000 kg; depositi di cereali e di altre macinazioni con quantitativi in massa superiori a 50.000 kg  ","superficie in mq",358.8,"Vale solo per i depositi, per stabilimenti e lavorazioni si veda 27.1.","N.B.: la superficie deve essere solo la somma delle aree lorde di piano diverse. Le tettoie aperte almeno su un lato vanno conteggiate al 50%.","Qualora l'altezza del deposito superasse i tre metri, per ogni quota di tre metri o frazione, si sommerà la corrisponde area in pianta nella superficie che costituisce il valore da immettere nella relativa cella.\nSe l'altezza del deposito  supera i tre metri, per ogni quota di tre metri o frazione, si sommerà la corrispondente area in pianta, valutata al 10 %, nel valore della superficie che costituisce il valore da immettere nella relativa cella.",0.95,0,1]
["28.1","Impianti per l'essiccazione di cereali e di vegetali in genere con depositi di prodotto essiccato con quantitativi in massa superiori a 50.000 kg  ","superficie in mq",390,"Vale per stabilimenti, lavorazioni, sono esclusi i soli depositi, per questi si veda 28.2.","N.B.: la superficie deve essere solo la somma delle aree lorde di piano diverse. Le tettoie aperte almeno su un lato vanno conteggiate al 50%.","Qualora ci fossero piani ripetuti uguali, quindi non sommati nella superficie, per ognuno di essi si valuterà una superficie aggiuntiva pari al 10% di quella del piano.",0.95,0,1]
["28.2","Impianti per l'essiccazione di cereali e di vegetali in genere con depositi di prodotto essiccato con quantitativi in massa superiori a 50.000 kg  ","superficie in mq",358.8,"Vale solo per i depositi, per stabilimenti e lavorazioni si veda 28.1.","N.B.: la superficie deve essere solo la somma delle aree lorde di piano diverse. Le tettoie aperte almeno su un lato vanno conteggiate al 50%.","Qualora l'altezza del deposito superasse i tre metri, per ogni quota di tre metri o frazione, si sommerà la corrisponde area in pianta nella superficie che costituisce il valore da immettere nella relativa cella.",0.95,0,1]
[29,"Stabilimenti ove si producono surrogati del caffè ","superficie in mq",234,null,"N.B.: la superficie deve essere solo la somma delle aree lorde di piano diverse. Le tettoie aperte almeno su un lato vanno conteggiate al 50%.","Qualora ci fossero piani ripetuti uguali, quindi non sommati nella superficie, per ognuno di essi si valuterà una superficie aggiuntiva pari al 10% di quella del piano.",0.95,0,1]
[30,"Zuccherifici e raffinerie dello zucchero ","superficie in mq",234,null,"N.B.: la superficie deve essere solo la somma delle aree lorde di piano diverse. Le tettoie aperte almeno su un lato vanno conteggiate al 50%.","Qualora ci fossero piani ripetuti uguali, quindi non sommati nella superficie, per ognuno di essi si valuterà una superficie aggiuntiva pari al 10% di quella del piano.",0.95,0,1]
[31,"Pastifici e/o riserie con produzione giornaliera superiore a 50.000 kg","superficie in mq",234,null,"N.B.: la superficie deve essere solo la somma delle aree lorde di piano diverse. Le tettoie aperte almeno su un lato vanno conteggiate al 50%.","Qualora ci fossero piani ripetuti uguali, quindi non sommati nella superficie, per ognuno di essi si valuterà una superficie aggiuntiva pari al 10% di quella del piano.",0.95,0,1]
["32.1","Stabilimenti ed impianti ove si lavora e/o detiene foglia di tabacco con processi di essiccazione con oltre 100 addetti o con quantitativi globali in ciclo e/o in deposito superiori a 50.000 kg  ","superficie in mq",468,"Vale per stabilimenti, lavorazioni, sono esclusi i soli depositi, per questi si veda 32.2.","N.B.: la superficie deve essere solo la somma delle aree lorde di piano diverse. Le tettoie aperte almeno su un lato vanno conteggiate al 50%.","Qualora ci fossero piani ripetuti uguali, quindi non sommati nella superficie, per ognuno di essi si valuterà una superficie aggiuntiva pari al 10% di quella del piano.",0.95,0,1]
["32.2","Stabilimenti ed impianti ove si lavora e/o detiene foglia di tabacco con processi di essiccazione con oltre 100 addetti o con quantitativi globali in ciclo e/o in deposito superiori a 50.000 kg  ","superficie in mq",312,"Vale solo per i depositi, per stabilimenti e lavorazioni si veda 32.1.","N.B.: la superficie deve essere solo la somma delle aree lorde di piano diverse. Le tettoie aperte almeno su un lato vanno conteggiate al 50%.","Qualora l'altezza del deposito  superasse i tre metri, per ogni quota di tre metri o frazione, si sommerà la corrisponde area in pianta nella superficie che costituisce il valore da immettere nella relativa cella.\nSe l'altezza del deposito  supera i tre metri, per ogni quota di tre metri o frazione, si sommerà la corrispondente area in pianta, valutata al 10 %, nel valore della superficie che costituisce il valore da immettere nella relativa cella.",0.95,0,1]
["33.1","Stabilimenti ed impianti per la produzione della carta e dei cartoni e di allestimento di prodotti cartotecnici in genere con oltre 25 addetti o con materiale in lavorazione e/o in deposito superiore a 50.000 kg  ","superficie in mq",390,"Vale per stabilimenti, lavorazioni, sono esclusi i soli depositi, per questi si veda 33.2.","N.B.: la superficie deve essere solo la somma delle aree lorde di piano diverse. Le tettoie aperte almeno su un lato vanno conteggiate al 50%.","Qualora ci fossero piani ripetuti uguali, quindi non sommati nella superficie, per ognuno di essi si valuterà una superficie aggiuntiva pari al 10% di quella del piano.",0.95,0,1]
["33.2","Stabilimenti ed impianti per la produzione della carta e dei cartoni e di allestimento di prodotti cartotecnici in genere con oltre 25 addetti o con materiale in lavorazione e/o in deposito superiore a 50.000 kg  ","superficie in mq",358.8,"Vale solo per i depositi, per stabilimenti e lavorazioni si veda 33.1.","N.B.: la superficie deve essere solo la somma delle aree lorde di piano diverse. Le tettoie aperte almeno su un lato vanno conteggiate al 50%.","Qualora l'altezza del deposito  superasse i tre metri, per ogni quota di tre metri o frazione, si sommerà la corrisponde area in pianta nella superficie che costituisce il valore da immettere nella relativa cella.\nSe l'altezza del deposito  supera i tre metri, per ogni quota di tre metri o frazione, si sommerà la corrispondente area in pianta, valutata al 10 %, nel valore della superficie che costituisce il valore da immettere nella relativa cella.",0.95,0,1]
["34.1","Depositi di carta, cartoni e prodotti cartotecnici, archivi di materiale cartaceo, biblioteche, depositi per la cernita della carta usata, di stracci di cascami e di fibre tessili per l'industria della carta, con quantitativi in massa superiori a 5.000 kg.","superficie in mq",358.8,"Non vale per biblioteche, per queste si veda 34.2.","N.B.: la superficie deve essere solo la somma delle aree lorde di piano diverse. Le tettoie aperte almeno su un lato vanno conteggiate al 50%.","Qualora ci fossero piani ripetuti uguali, quindi non sommati nella superficie, per ognuno di essi si valuterà una superficie aggiuntiva pari al 10% di quella del piano.\nSe l'altezza del deposito  supera i tre metri, per ogni quota di tre metri o frazione, si sommerà la corrispondente area in pianta, valutata al 10 %, nel valore della superficie che costituisce il valore da immettere nella relativa cella.",0.95,0,1]
["34.2","Depositi di carta, cartoni e prodotti cartotecnici, archivi di materiale cartaceo, biblioteche, depositi per la cernita della carta usata, di stracci di cascami e di fibre tessili per l'industria della carta, con quantitativi in massa superiori a 5.000 kg.","superficie in mq",468,"Vale solo per biblioteche, per depositi di carta e simili si veda 34.1.","N.B.: la superficie deve essere solo la somma delle aree lorde di piano diverse. Le tettoie aperte almeno su un lato vanno conteggiate al 50%.","Qualora ci fossero piani ripetuti uguali, quindi non sommati nella superficie, per ognuno di essi si valuterà una superficie aggiuntiva pari al 10% di quella del piano.",1.2,0,1]
["35.1","Stabilimenti, impianti, depositi ove si producono, impiegano e/o detengono carte fotografiche, calcografiche, eliografiche e cianografiche, pellicole cinematografiche, radiografiche e fotografiche con materiale in lavorazione e/o in deposito superiore a 5.000 kg ","superficie in mq",468,"Vale per stabilimenti, lavorazioni, sono esclusi i soli depositi, per questi si veda 35.2.","N.B.: la superficie deve essere solo la somma delle aree lorde di piano diverse. Le tettoie aperte almeno su un lato vanno conteggiate al 50%.","Qualora ci fossero piani ripetuti uguali, quindi non sommati nella superficie, per ognuno di essi si valuterà una superficie aggiuntiva pari al 10% di quella del piano.",0.95,0,1]
["35.2","Stabilimenti, impianti, depositi ove si producono, impiegano e/o detengono carte fotografiche, calcografiche, eliografiche e cianografiche, pellicole cinematografiche, radiografiche e fotografiche con materiale in lavorazione e/o in deposito superiore a 5.000 kg ","superficie in mq",358.8,"Vale solo per i depositi, per stabilimenti e lavorazioni si veda 35.1.","N.B.: la superficie deve essere solo la somma delle aree lorde di piano diverse. Le tettoie aperte almeno su un lato vanno conteggiate al 50%.","Qualora l'altezza del deposito  superasse i tre metri, per ogni quota di tre metri o frazione, si sommerà la corrisponde area in pianta nella superficie che costituisce il valore da immettere nella relativa cella.\nSe l'altezza del deposito  supera i tre metri, per ogni quota di tre metri o frazione, si sommerà la corrispondente area in pianta, valutata al 10 %, nel valore della superficie che costituisce il valore da immettere nella relativa cella.",0.95,0,1]
["36.1","Depositi di legnami da costruzione e da lavorazione, di legna da ardere, di paglia, di fieno, di canne, di fascine, di carbone vegetale e minerale, di carbonella, di sughero e di altri prodotti affini con quantitativi in massa superiori a 50.000 kg con esclusione dei depositi all’aperto con distanze di sicurezza esterne superiori a 100 m  ","superficie in mq",390,"Vale per stabilimenti, lavorazioni, sono esclusi i soli depositi, per questi si veda 36.2.","N.B.: la superficie deve essere solo la somma delle aree lorde di piano diverse. Le tettoie aperte almeno su un lato vanno conteggiate al 50%.","Qualora ci fossero piani ripetuti uguali, quindi non sommati nella superficie, per ognuno di essi si valuterà una superficie aggiuntiva pari al 10% di quella del piano.",0.95,0,1]
["36.2","Depositi di legnami da costruzione e da lavorazione, di legna da ardere, di paglia, di fieno, di canne, di fascine, di carbone vegetale e minerale, di carbonella, di sughero e di altri prodotti affini con quantitativi in massa superiori a 50.000 kg con esclusione dei depositi all’aperto con distanze di sicurezza esterne superiori a 100 m  ","superficie in mq",358.8,"Vale solo per i depositi, per stabilimenti e lavorazioni si veda 36.1.","N.B.: la superficie deve essere solo la somma delle aree lorde di piano diverse. Le tettoie aperte almeno su un lato vanno conteggiate al 50%.","Qualora l'altezza del deposito  superasse i tre metri, per ogni quota di tre metri o frazione, si sommerà la corrisponde area in pianta nella superficie che costituisce il valore da immettere nella relativa cella.\nSe l'altezza del deposito  supera i tre metri, per ogni quota di tre metri o frazione, si sommerà la corrispondente area in pianta, valutata al 10 %, nel valore della superficie che costituisce il valore da immettere nella relativa cella.",0.95,0,1]
["37.1","Stabilimenti e laboratori per la lavorazione del legno con materiale in lavorazione e/o in deposito superiore a 5.000 kg  ","superficie in mq",390,"Vale per stabilimenti, lavorazioni, sono esclusi i soli depositi, per questi si veda 37.2.","N.B.: la superficie deve essere solo la somma delle aree lorde di piano diverse. Le tettoie aperte almeno su un lato vanno conteggiate al 50%.","Qualora ci fossero piani ripetuti uguali, quindi non sommati nella superficie, per ognuno di essi si valuterà una superficie aggiuntiva pari al 10% di quella del piano.",0.95,0,1]
["37.2","Stabilimenti e laboratori per la lavorazione del legno con materiale in lavorazione e/o in deposito superiore a 5.000 kg  ","superficie in mq",358.8,"Vale solo per i depositi, per stabilimenti e lavorazioni si veda 37.1.","N.B.: la superficie deve essere solo la somma delle aree lorde di piano diverse. Le tettoie aperte almeno su un lato vanno conteggiate al 50%.","Qualora l'altezza del deposito  superasse i tre metri, per ogni quota di tre metri o frazione, si sommerà la corrisponde area in pianta nella superficie che costituisce il valore da immettere nella relativa cella.\nSe l'altezza del deposito  supera i tre metri, per ogni quota di tre metri o frazione, si sommerà la corrispondente area in pianta, valutata al 10 %, nel valore della superficie che costituisce il valore da immettere nella relativa cella.",0.95,0,1]
["38.1","Stabilimenti ed impianti ove si producono, lavorano e/o detengono fibre tessili e tessuti naturali e artificiali, tele cerate, linoleum e altri prodotti affini, con quantitativi in massa superiori a 5.000 kg ","superficie in mq",390,"Vale per stabilimenti, lavorazioni, sono esclusi i soli depositi, per questi si veda 38.2.","N.B.: la superficie deve essere solo la somma delle aree lorde di piano diverse. Le tettoie aperte almeno su un lato vanno conteggiate al 50%.","Qualora ci fossero piani ripetuti uguali, quindi non sommati nella superficie, per ognuno di essi si valuterà una superficie aggiuntiva pari al 10% di quella del piano.",0.95,0,1]
["38.2","Stabilimenti ed impianti ove si producono, lavorano e/o detengono fibre tessili e tessuti naturali e artificiali, tele cerate, linoleum e altri prodotti affini, con quantitativi in massa superiori a 5.000 kg ","superficie in mq",358.8,"Vale solo per i depositi, per stabilimenti e lavorazioni si veda 38.1.","N.B.: la superficie deve essere solo la somma delle aree lorde di piano diverse. Le tettoie aperte almeno su un lato vanno conteggiate al 50%.","Qualora l'altezza del deposito  superasse i tre metri, per ogni quota di tre metri o frazione, si sommerà la corrisponde area in pianta nella superficie che costituisce il valore da immettere nella relativa cella.",0.95,0,1]
[39,"Stabilimenti per la produzione di arredi, di abbigliamento, della lavorazione della pelle e calzaturifici, con oltre 25 addetti. ","superficie in mq",312,null,null,null,0.95,0,1]
["40.1","Stabilimenti ed impianti per la preparazione del crine vegetale, della trebbia e simili, lavorazione della paglia, dello sparto e simili, lavorazione del sughero, con quantitativi in massa in lavorazione o in deposito superiori a 5.000 kg  ","superficie in mq",390,"Vale per stabilimenti, lavorazioni, sono esclusi i soli depositi, per questi si veda 40.2.","N.B.: la superficie deve essere solo la somma delle aree lorde di piano diverse. Le tettoie aperte almeno su un lato vanno conteggiate al 50%.","Qualora ci fossero piani ripetuti uguali, quindi non sommati nella superficie, per ognuno di essi si valuterà una superficie aggiuntiva pari al 10% di quella del piano.",0.95,0,1]
["40.2","Stabilimenti ed impianti per la preparazione del crine vegetale, della trebbia e simili, lavorazione della paglia, dello sparto e simili, lavorazione del sughero, con quantitativi in massa in lavorazione o in deposito superiori a 5.000 kg  ","superficie in mq",358.8,"Vale solo per i depositi, per stabilimenti e lavorazioni si veda 40.1.","N.B.: la superficie deve essere solo la somma delle aree lorde di piano diverse. Le tettoie aperte almeno su un lato vanno conteggiate al 50%.","Qualora l'altezza del deposito  superasse i tre metri, per ogni quota di tre metri o frazione, si sommerà la corrisponde area in pianta nella superficie che costituisce il valore da immettere nella relativa cella.\nSe l'altezza del deposito  supera i tre metri, per ogni quota di tre metri o frazione, si sommerà la corrispondente area in pianta, valutata al 10 %, nel valore della superficie che costituisce il valore da immettere nella relativa cella.",0.95,0,1]
[41,"Teatri e studi per le riprese cinematografiche e televisive ","superficie in mq",312,null,"N.B.: la superficie deve essere solo la somma delle aree lorde di piano diverse. Le tettoie aperte almeno su un lato vanno conteggiate al 50%.","Qualora ci fossero piani ripetuti uguali, quindi non sommati nella superficie, per ognuno di essi si valuterà una superficie aggiuntiva pari al 10% di quella del piano.",0.95,0,1]
[42,"Laboratori per la realizzazione di attrezzerie e scenografie, compresi i relativi depositi, di superficie complessiva superiore a 200 mq  ","superficie in mq",234,null,"N.B.: la superficie deve essere solo la somma delle aree lorde di piano diverse. Le tettoie aperte almeno su un lato vanno conteggiate al 50%.","Qualora ci fossero piani ripetuti uguali, quindi non sommati nella superficie, per ognuno di essi si valuterà una superficie aggiuntiva pari al 10% di quella del piano.",0.95,0,1]
["43.1","Stabilimenti ed impianti per la produzione, lavorazione e rigenerazione della gomma e/o laboratori di vulcanizzazione di oggetti di gomma, con quantitativi in massa superiori a 5.000 kg; depositi di prodotti della gomma, pneumatici e simili, con quantitativi in massa superiori a 10.000 kg ","superficie in mq",468,"Vale per stabilimenti, lavorazioni, sono esclusi i soli depositi, per questi si veda 43.2.","N.B.: la superficie deve essere solo la somma delle aree lorde di piano diverse. Le tettoie aperte almeno su un lato vanno conteggiate al 50%.","Qualora ci fossero piani ripetuti uguali, quindi non sommati nella superficie, per ognuno di essi si valuterà una superficie aggiuntiva pari al 10% di quella del piano.",0.95,0,1]
["43.2","Stabilimenti ed impianti per la produzione, lavorazione e rigenerazione della gomma e/o laboratori di vulcanizzazione di oggetti di gomma, con quantitativi in massa superiori a 5.000 kg; depositi di prodotti della gomma, pneumatici e simili, con quantitativi in massa superiori a 10.000 kg ","superficie in mq",358.8,"Vale solo per i depositi, per stabilimenti e lavorazioni si veda 43.1.","N.B.: la superficie deve essere solo la somma delle aree lorde di piano diverse. Le tettoie aperte almeno su un lato vanno conteggiate al 50%.","Qualora ci fossero piani ripetuti uguali, quindi non sommati nella superficie, per ognuno di essi si valuterà una superficie aggiuntiva pari al 10% di quella del piano.\nSe l'altezza del deposito  supera i tre metri, per ogni quota di tre metri o frazione, si sommerà la corrispondente area in pianta, valutata al 10 %, nel valore della superficie che costituisce il valore da immettere nella relativa cella.",0.95,0,1]
["44.1","Stabilimenti, impianti, depositi ove si producono, lavorano e/o detengono materie plastiche, con quantitativi in massa superiori a 5.000 kg ","superficie in mq",390,"Vale per stabilimenti, lavorazioni, sono esclusi i soli depositi, per questi si veda 44.2.","N.B.: la superficie deve essere solo la somma delle aree lorde di piano diverse. Le tettoie aperte almeno su un lato vanno conteggiate al 50%.","Qualora ci fossero piani ripetuti uguali, quindi non sommati nella superficie, per ognuno di essi si valuterà una superficie aggiuntiva pari al 10% di quella del piano.",0.95,0,1]
["44.2","Stabilimenti, impianti, depositi ove si producono, lavorano e/o detengono materie plastiche, con quantitativi in massa superiori a 5.000 kg ","superficie in mq",358.8,"Vale solo per i depositi, per stabilimenti e lavorazioni si veda 44.1.","N.B.: la superficie deve essere solo la somma delle aree lorde di piano diverse. Le tettoie aperte almeno su un lato vanno conteggiate al 50%.","Qualora ci fossero piani ripetuti uguali, quindi non sommati nella superficie, per ognuno di essi si valuterà una superficie aggiuntiva pari al 10% di quella del piano.\nSe l'altezza del deposito  supera i tre metri, per ogni quota di tre metri o frazione, si sommerà la corrispondente area in pianta, valutata al 10 %, nel valore della superficie che costituisce il valore da immettere nella relativa cella.",0.95,0,1]
[45,"Stabilimenti ed impianti ove si producono e lavorano resine sintetiche e naturali, fitofarmaci, coloranti organici e intermedi e prodotti farmaceutici con l'impiego di solventi ed altri prodotti infiammabili  ","superficie in mq",124.80000000000001,null,"N.B.: la superficie deve essere solo la somma delle aree lorde di piano diverse. Le tettoie aperte almeno su un lato vanno conteggiate al 50%.","Qualora ci fossero piani ripetuti uguali, quindi non sommati nella superficie, per ognuno di essi si valuterà una superficie aggiuntiva pari al 10% di quella del piano.",0.95,0,1]
[46,"Depositi di fitofarmaci e/o di concimi chimici a base di nitrati e/o fosfati con quantitativi in massa superiori a 50.000 kg ","superficie in mq",156,null,"N.B.: la superficie deve essere solo la somma delle aree lorde di piano diverse. Le tettoie aperte almeno su un lato vanno conteggiate al 50%.","Qualora ci fossero piani ripetuti uguali, quindi non sommati nella superficie, per ognuno di essi si valuterà una superficie aggiuntiva pari al 10% di quella del piano.\nSe l'altezza del deposito  supera i tre metri, per ogni quota di tre metri o frazione, si sommerà la corrispondente area in pianta, valutata al 10 %, nel valore della superficie che costituisce il valore da immettere nella relativa cella.",0.95,0,1]
["47.1","Stabilimenti ed impianti per la fabbricazione di cavi e conduttori elettrici isolati, con quantitativi in massa in lavorazione e/o in deposito superiori a 10.000 kg;  \ndepositi e/o rivendite di cavi elettrici isolati con quantitativi in massa superiori a 10.000 kg.","superficie in mq",390,"Vale per stabilimenti, lavorazioni, sono esclusi i soli depositi, per questi si veda 47.2.","N.B.: la superficie deve essere solo la somma delle aree lorde di piano diverse. Le tettoie aperte almeno su un lato vanno conteggiate al 50%.","Qualora ci fossero piani ripetuti uguali, quindi non sommati nella superficie, per ognuno di essi si valuterà una superficie aggiuntiva pari al 10% di quella del piano.",0.95,0,1]
["47.2","Stabilimenti ed impianti per la fabbricazione di cavi e conduttori elettrici isolati, con quantitativi in massa in lavorazione e/o in deposito superiori a 10.000 kg;  \ndepositi e/o rivendite di cavi elettrici isolati con quantitativi in massa superiori a 10.000 kg.","superficie in mq",358.8,"Vale solo per i depositi, per stabilimenti e lavorazioni si veda 47.1.","N.B.: la superficie deve essere solo la somma delle aree lorde di piano diverse. Le tettoie aperte almeno su un lato vanno conteggiate al 50%.","Qualora ci fossero piani ripetuti uguali, quindi non sommati nella superficie, per ognuno di essi si valuterà una superficie aggiuntiva pari al 10% di quella del piano.\nSe l'altezza del deposito  supera i tre metri, per ogni quota di tre metri o frazione, si sommerà la corrispondente area in pianta, valutata al 10 %, nel valore della superficie che costituisce il valore da immettere nella relativa cella.",0.95,0,1]
[48,"Centrali termoelettriche, macchine elettriche fisse con presenza di liquidi isolanti combustibili in quantitativi superiori a 1 mc ","MW",15600,null,"N.B.: la superficie deve essere solo la somma delle aree lorde di piano diverse. Le tettoie aperte almeno su un lato vanno conteggiate al 50%.","Qualora ci fossero piani ripetuti uguali, quindi non sommati nella superficie, per ognuno di essi si valuterà una superficie aggiuntiva pari al 10% di quella del piano.",0.95,0,1]
[49,"Gruppi per la produzione di energia elettrica sussidiaria con motori endotermici ed impianti di cogenerazione di potenza complessiva superiore a 25 kW. ","kW",1248,null,"N.B.: la potenza totale, che costituisce il valore da inserire, è la somma delle potenze di tutti i generatori sia inferiori singolarmente a 25 kW che superiori.",null,0.95,25,1]
[50,"Stabilimenti ed impianti ove si producono lampade elettriche e simili, pile ed accumulatori elettrici e simili, con oltre 5 addetti. ","superficie in mq",312,null,"N.B.: la superficie deve essere solo la somma delle aree lorde di piano diverse. Le tettoie aperte almeno su un lato vanno conteggiate al 50%.","Qualora ci fossero piani ripetuti uguali, quindi non sommati nella superficie, per ognuno di essi si valuterà una superficie aggiuntiva pari al 10% di quella del piano.",0.8,0,1]
[51,"Stabilimenti siderurgici e per la produzione di altri metalli con oltre 5 addetti; attività comportanti lavorazioni a caldo di metalli, con oltre 5 addetti, ad esclusione dei laboratori artigiani di oreficeria ed argenteria fino a 25 addetti.  ","superficie in mq",312,null,"N.B.: la superficie deve essere solo la somma delle aree lorde di piano diverse. Le tettoie aperte almeno su un lato vanno conteggiate al 50%.","Qualora ci fossero piani ripetuti uguali, quindi non sommati nella superficie, per ognuno di essi si valuterà una superficie aggiuntiva pari al 10% di quella del piano.",0.8,0,1]
[52,"Stabilimenti, con oltre 5 addetti, per la costruzione di aeromobili, veicoli a motore, materiale rotabile ferroviario e tramviario, carrozzerie e rimorchi per autoveicoli; cantieri navali con oltre 5 addetti ","superficie in mq",312,null,"N.B.: la superficie deve essere solo la somma delle aree lorde di piano diverse. Le tettoie aperte almeno su un lato vanno conteggiate al 50%.","Qualora ci fossero piani ripetuti uguali, quindi non sommati nella superficie, per ognuno di essi si valuterà una superficie aggiuntiva pari al 10% di quella del piano.",0.95,0,1]
[53,"Officine per la riparazione di: \n- veicoli a motore, rimorchi per autoveicoli e carrozzerie, di superficie coperta superiore a 300 mq; \n- materiale rotabile ferroviario, tramviario e di aeromobili, di superficie coperta superiore a 1.000 mq; ","superficie in mq",312,null,"N.B.: la superficie deve essere solo la somma delle aree lorde di piano diverse. Le tettoie aperte almeno su un lato vanno conteggiate al 50%.","Qualora ci fossero piani ripetuti uguali, quindi non sommati nella superficie, per ognuno di essi si valuterà una superficie aggiuntiva pari al 10% di quella del piano.",0.95,0,1]
[54,"Officine meccaniche per lavorazioni a freddo con oltre 25 addetti. ","superficie in mq",312,null,"N.B.: la superficie deve essere solo la somma delle aree lorde di piano diverse. Le tettoie aperte almeno su un lato vanno conteggiate al 50%.","Qualora ci fossero piani ripetuti uguali, quindi non sommati nella superficie, per ognuno di essi si valuterà una superficie aggiuntiva pari al 10% di quella del piano.",0.95,0,1]
[55,"Attività di demolizioni di veicoli e simili con relativi depositi, di superficie superiore a 3.000 mq  ","superficie in mq",156,null,"N.B.: la superficie deve essere solo la somma delle aree lorde di piano diverse. Le tettoie aperte almeno su un lato vanno conteggiate al 50%.","Qualora ci fossero piani ripetuti uguali, quindi non sommati nella superficie, per ognuno di essi si valuterà una superficie aggiuntiva pari al 10% di quella del piano.",0.65,0,1]
[56,"Stabilimenti ed impianti ove si producono laterizi, maioliche, porcellane e simili con oltre 25 addetti ","superficie in mq",202.8,null,"N.B.: la superficie deve essere solo la somma delle aree lorde di piano diverse. Le tettoie aperte almeno su un lato vanno conteggiate al 50%.","Qualora ci fossero piani ripetuti uguali, quindi non sommati nella superficie, per ognuno di essi si valuterà una superficie aggiuntiva pari al 10% di quella del piano.",0.8,0,1]
[57,"Cementifici con oltre 25 addetti ","superficie in mq",202.8,null,"N.B.: la superficie deve essere solo la somma delle aree lorde di piano diverse. Le tettoie aperte almeno su un lato vanno conteggiate al 50%.","Qualora ci fossero piani ripetuti uguali, quindi non sommati nella superficie, per ognuno di essi si valuterà una superficie aggiuntiva pari al 10% di quella del piano.",0.8,0,1]
[58,"Pratiche di cui al D.Lgs 17 marzo 1995, n. 230 e s.m.i. soggette a provvedimenti autorizzativi (art. 27 del D.Lgs 17 marzo 1995, n. 230 ed art. 13 legge 31 dicembre 1962, n. 1860). ","superficie in mq",234,null,"N.B.: la superficie deve essere solo la somma delle aree lorde di piano diverse. Le tettoie aperte almeno su un lato vanno conteggiate al 50%.","Qualora ci fossero piani ripetuti uguali, quindi non sommati nella superficie, per ognuno di essi si valuterà una superficie aggiuntiva pari al 10% di quella del piano.",0.95,0,1]
[59,"Autorimesse adibite al ricovero di mezzi utilizzati per il trasporto di materie fissili speciali e di materie radioattive (art. 5 della legge 31/12/1962, n. 1860, sostituito dall'art. 2 del DPR 30/12/1965, n. 1704; art. 21 del D.Lgs 17/3/1995, n. 230) ","superficie in mq",312,null,"N.B.: la superficie deve essere solo la somma delle aree lorde di piano diverse. Le tettoie aperte almeno su un lato vanno conteggiate al 50%.","Qualora ci fossero piani ripetuti uguali, quindi non sommati nella superficie, per ognuno di essi si valuterà una superficie aggiuntiva pari al 10% di quella del piano.",0.95,0,1]
[60,"Impianti di deposito delle materie nucleari ed attività assoggettate agli articoli 33 e 52 del D.Lgs 17 marzo 1995, n. 230 e s.m.i, con esclusione dei depositi in corso di spedizione. ","superficie in mq",312,null,"N.B.: la superficie deve essere solo la somma delle aree lorde di piano diverse. Le tettoie aperte almeno su un lato vanno conteggiate al 50%.","Qualora ci fossero piani ripetuti uguali, quindi non sommati nella superficie, per ognuno di essi si valuterà una superficie aggiuntiva pari al 10% di quella del piano.",0.95,0,1]
[61,"Impianti nei quali siano detenuti combustibili nucleari o prodotti o residui radioattivi [art. 1, lettera b) della legge 31/12/1962, n. 1860] ","superficie in mq",468,null,"N.B.: la superficie deve essere solo la somma delle aree lorde di piano diverse. Le tettoie aperte almeno su un lato vanno conteggiate al 50%.","Qualora ci fossero piani ripetuti uguali, quindi non sommati nella superficie, per ognuno di essi si valuterà una superficie aggiuntiva pari al 10% di quella del piano.",1.2,0,1]
[62,"Impianti relativi all'impiego pacifico dell'energia nucleare ed attività che comportano pericoli di radiazioni ionizzanti derivanti dal predetto impiego: impianti nucleari; reattori nucleari, eccettuati quelli che facciano parte di un mezzo di trasporto; impianti per la preparazione o fabbricazione delle materie nucleari; impianti per la separazione degli isotopi; impianti per il trattamento dei combustibili nucleari irradianti; attività di cui agli articoli 36 e 51 del D.Lgs 17/3/1995, n. 230 e s.m.i. ","superficie in mq",468,null,"N.B.: la superficie deve essere solo la somma delle aree lorde di piano diverse. Le tettoie aperte almeno su un lato vanno conteggiate al 50%.","Qualora ci fossero piani ripetuti uguali, quindi non sommati nella superficie, per ognuno di essi si valuterà una superficie aggiuntiva pari al 10% di quella del piano.",1.2,0,1]
["63.1","Stabilimenti per la produzione, depositi di sapone, di candele e di altri oggetti di cera e di paraffina, di acidi grassi, di glicerina grezza quando non sia prodotta per idrolisi, di glicerina raffinata e distillata ed altri prodotti affini, con oltre 500 kg di prodotto in lavorazione e/o deposito. ","superficie in mq",468,"Vale per stabilimenti, lavorazioni, sono esclusi i soli depositi, per questi si veda 63.2.","N.B.: la superficie deve essere solo la somma delle aree lorde di piano diverse. Le tettoie aperte almeno su un lato vanno conteggiate al 50%.","Qualora ci fossero piani ripetuti uguali, quindi non sommati nella superficie, per ognuno di essi si valuterà una superficie aggiuntiva pari al 10% di quella del piano.",0.95,0,1]
["63.2","Stabilimenti per la produzione, depositi di sapone, di candele e di altri oggetti di cera e di paraffina, di acidi grassi, di glicerina grezza quando non sia prodotta per idrolisi, di glicerina raffinata e distillata ed altri prodotti affini, con oltre 500 kg di prodotto in lavorazione e/o deposito. ","superficie in mq",358.8,"Vale solo per i depositi, per stabilimenti e lavorazioni si veda 63.1.","N.B.: la superficie deve essere solo la somma delle aree lorde di piano diverse. Le tettoie aperte almeno su un lato vanno conteggiate al 50%.","Qualora ci fossero piani ripetuti uguali, quindi non sommati nella superficie, per ognuno di essi si valuterà una superficie aggiuntiva pari al 10% di quella del piano.\nSe l'altezza del deposito  supera i tre metri, per ogni quota di tre metri o frazione, si sommerà la corrispondente area in pianta, valutata al 10 %, nel valore della superficie che costituisce il valore da immettere nella relativa cella.",0.95,0,1]
[64,"Centri informatici di elaborazione e/o archiviazione dati con oltre 25 addetti ","superficie in mq",780,null,"N.B.: la superficie deve essere solo la somma delle aree lorde di piano diverse. Le tettoie aperte almeno su un lato vanno conteggiate al 50%.","Qualora ci fossero piani ripetuti uguali, quindi non sommati nella superficie, per ognuno di essi si valuterà una superficie aggiuntiva pari al 10% di quella del piano.",1.2,0,1]
["65.1","Locali di spettacolo e di trattenimento in genere, impianti e centri sportivi, palestre, sia a carattere pubblico che privato, con capienza superiore a 100 persone, ovvero di superficie lorda in pianta al chiuso superiore a 200 mq . Sono escluse le manifestazioni temporanee, di qualsiasi genere, che si effettuano in locali o luoghi aperti al pubblico.","superficie in mq",780,"Non vale per strutture all'aria aperta, per queste si veda 65.2.","N.B.: la superficie deve essere solo la somma delle aree lorde di piano diverse.","Qualora ci fossero piani ripetuti uguali, quindi non sommati nella superficie, per ognuno di essi si valuterà una superficie aggiuntiva pari al 10% di quella del piano.",1.2,0,1]
["65.2","Locali di spettacolo e di trattenimento in genere, impianti e centri sportivi, palestre, sia a carattere pubblico che privato, con capienza superiore a 100 persone, ovvero di superficie lorda in pianta al chiuso superiore a 200 mq . Sono escluse le manifestazioni temporanee, di qualsiasi genere, che si effettuano in locali o luoghi aperti al pubblico.","superficie in mq",390,"Vale per strutture all'aria aperta, anche coperte e tettoie (stadi, balconate ecc.), per strutture al chiuso si veda 65.1.","N.B.: la superficie deve essere solo la somma delle aree lorde di piano diverse.","Qualora ci fossero piani ripetuti uguali, quindi non sommati nella superficie, per ognuno di essi si valuterà una superficie aggiuntiva pari al 10% di quella del piano.",1.1499999999999999,0,1]
["66.1","Alberghi, pensioni, motel, villaggi albergo, residenze turistico - alberghiere, studentati, villaggi turistici, alloggi agrituristici, ostelli per la gioventù, rifugi alpini, bed & breakfast, dormitori, case per ferie, con oltre 25 posti-letto; Strutture turistico-ricettive nell’aria aperta (campeggi, villaggi-turistici, ecc.) con capacità ricettiva superiore a 400 persone.  ","superficie in mq",624,"Non vale per strutture all'aria aperta, per queste si veda 66.2.","N.B.: la superficie deve essere solo la somma delle aree lorde di piano diverse. Le tettoie aperte almeno su un lato vanno conteggiate al 50%.","Qualora ci fossero piani ripetuti uguali, quindi non sommati nella superficie, per ognuno di essi si valuterà una superficie aggiuntiva pari al 10% di quella del piano.",1.2,0,1]
["66.2","Alberghi, pensioni, motel, villaggi albergo, residenze turistico - alberghiere, studentati, villaggi turistici, alloggi agrituristici, ostelli per la gioventù, rifugi alpini, bed & breakfast, dormitori, case per ferie, con oltre 25 posti-letto; Strutture turistico-ricettive nell’aria aperta (campeggi, villaggi-turistici, ecc.) con capacità ricettiva superiore a 400 persone.  ","superficie in mq",312,"Vale solo per strutture all'aria aperta, per strutture al chuso si veda 66.1.","N.B.: la superficie deve comprendere solo l'area ove sono gli edifici comuni (singolarmente non soggetti) e dove può avvenire la sosta degli ospiti con tende, camper ecc., nonche le residenze singole fisse; le tettoie aperte vanno conteggiate integralmente.",null,1.1499999999999999,0,1]
["67.1","Scuole di ogni ordine, grado e tipo, collegi, accademie con oltre 100 persone presenti; Asili nido con oltre 30 persone presenti. \n","supericie in mq",624,"Vale per nidi, materne, elementari e medie. ","La superficie deve essere solo la somma delle aree lorde di piano diverse. Le tettoie aperte almeno su un lato vanno conteggiate al 50%.","Qualora ci fossero piani ripetuti uguali, quindi non sommati nella superficie, per ognuno di essi si valuterà una superficie aggiuntiva pari al 10% di quella del piano.",0.95,0,1]
["67.2","Scuole di ogni ordine, grado e tipo, collegi, accademie con oltre 100 persone presenti; Asili nido con oltre 30 persone presenti. \n","superficie in mq",624,"Vale per scuole superiori.","La superficie deve essere solo la somma delle aree lorde di piano diverse. Le tettoie aperte almeno su un lato vanno conteggiate al 50%.","Qualora ci fossero piani ripetuti uguali, quindi non sommati nella superficie, per ognuno di essi si valuterà una superficie aggiuntiva pari al 10% di quella del piano.",1.1499999999999999,0,1]
["67.3","Scuole di ogni ordine, grado e tipo, collegi, accademie con oltre 100 persone presenti; Asili nido con oltre 30 persone presenti. \n","superficie in mq",624,"Vale per università e ricerca","La superficie deve essere solo la somma delle aree lorde di piano diverse. Le tettoie aperte almeno su un lato vanno conteggiate al 50%.","Qualora ci fossero piani ripetuti uguali, quindi non sommati nella superficie, per ognuno di essi si valuterà una superficie aggiuntiva pari al 10% di quella del piano.",1.2,0,1]
["68.1","Strutture sanitarie che erogano prestazioni in regime di ricovero ospedaliero e/o residenziale a ciclo continuativo e/o diurno, case di riposo per anziani con oltre 25 posti letto;  Strutture sanitarie che erogano prestazioni di assistenza specialistica in regime ambulatoriale, ivi comprese quelle riabilitative, di diagnostica strumentale e di laboratorio, di superficie complessiva superiore a 500 mq ","superficie in mq",702,"Vale solo per regime ospedaliero con degenze.","N.B.: la superficie deve essere solo la somma delle aree lorde di piano diverse. Le tettoie aperte almeno su un lato vanno conteggiate al 50%.","Qualora ci fossero piani ripetuti uguali, quindi non sommati nella superficie, per ognuno di essi si valuterà una superficie aggiuntiva pari al 10% di quella del piano.",1.2,0,1]
["68.2","Strutture sanitarie che erogano prestazioni in regime di ricovero ospedaliero e/o residenziale a ciclo continuativo e/o diurno, case di riposo per anziani con oltre 25 posti letto;  Strutture sanitarie che erogano prestazioni di assistenza specialistica in regime ambulatoriale, ivi comprese quelle riabilitative, di diagnostica strumentale e di laboratorio, di superficie complessiva superiore a 500 mq ","superficie in mq",624,"Vale solo per regime ambulatoriale o di laboratorio.","N.B.: la superficie deve essere solo la somma delle aree lorde di piano diverse. Le tettoie aperte almeno su un lato vanno conteggiate al 50%.","Qualora ci fossero piani ripetuti uguali, quindi non sommati nella superficie, per ognuno di essi si valuterà una superficie aggiuntiva pari al 10% di quella del piano.",1.1000000000000001,0,1]
["69.1","Locali adibiti ad esposizione e/o vendita all'ingrosso o al dettaglio, fiere e quartieri fieristici, con superficie lorda superiore a 400 mq comprensiva dei servizi e depositi. Sono escluse le manifestazioni temporanee, di qualsiasi genere, che si effettuano in locali o luoghi aperti al pubblico. ","superficie in mq",468,"Non vale per padiglioni fieristici,  per questi si veda 69.2.","N.B.: la superficie deve essere solo la somma delle aree lorde di piano diverse: qualora ci fossero piani ripetuti uguali, quindi non sommati nella superficie, per ognuno di essi si valuterà una superficie aggiuntiva del 10% per piano. Le tettoie aperte almeno su un lato vanno conteggiate al 50%.",null,1.2,0,1]
["69.2","Locali adibiti ad esposizione e/o vendita all'ingrosso o al dettaglio, fiere e quartieri fieristici, con superficie lorda superiore a 400 mq comprensiva dei servizi e depositi. Sono escluse le manifestazioni temporanee, di qualsiasi genere, che si effettuano in locali o luoghi aperti al pubblico. ","superficie in mq",390,"Vale per padiglioni fieristici.","N.B.: la superficie deve essere solo la somma delle aree lorde di piano diverse: qualora ci fossero piani ripetuti uguali, quindi non sommati nella superficie, per ognuno di essi si valuterà un superficie aggiuntiva pari al 10% di quella del piano. Le tettoie aperte almeno su un lato vanno conteggiate al 50%.",null,0.95,0,1]
[70,"Locali adibiti a depositi di superficie lorda superiore a 1000 mq con quantitativi di merci e materiali combustibili superiori complessivamente a 5.000 kg  ","superficie in mq",358.8,null,"N.B.: la superficie deve essere solo la somma delle aree lorde di piano diverse. Le tettoie aperte almeno su un lato vanno conteggiate al 50%.","Se l'altezza del deposito  supera i tre metri, per ogni quota di tre metri o frazione, si sommerà la corrispondente area in pianta, valutata al 10 %, nel valore della superficie che costituisce il valore da immettere nella relativa cella.",0.95,0,1]
[71,"Aziende ed uffici con oltre 300 persone presenti ","superficie in mq",826.80000000000007,null,"N.B.: la superficie deve essere solo la somma delle aree lorde di piano diverse: qualora ci fossero piani ripetuti uguali, quindi non sommati nella superficie, per ognuno di essi si valuterà un superficie aggiuntiva del 10% per piano. Le tettoie aperte almeno su un lato vanno conteggiate al 50%.",null,1.2,0,1]
[72,"Edifici sottoposti a tutela ai sensi del d.lgs. 22/1/2004, n. 42, aperti al pubblico, destinati a contenere biblioteche ed archivi, musei, gallerie, esposizioni e mostre, nonché qualsiasi altra attività contenuta nel presente Allegato.","superficie in mq",811.2,null,"N.B.: la superficie deve essere solo la somma delle aree lorde di piano diverse. Qualora ci fossero piani ripetuti uguali, quindi non sommati nella superficie, per ognuno di essi si valuterà una superficie aggiuntiva del 10% per piano. Le tettoie aperte almeno su un lato vanno conteggiate al 50%.",null,1.55,0,1]
[73,"Edifici e/o complessi edilizi a uso terziario e/o industriale caratterizzati da promiscuità strutturale e/o dei sistemi delle vie di esodo e/o impiantistica con presenza di persone superiore a 300 unità, ovvero di superficie complessiva superiore a 5.000 mq, indipendentemente dal numero di attività costituenti e dalla relativa diversa titolarità. ","superficie in mq",312,null,"N.B.: la superficie deve essere solo la somma delle aree lorde di piano diverse. Qualora ci fossero piani ripetuti uguali, quindi non sommati nella superficie, per ognuno di essi si valuterà un superficie aggiuntiva del 10% per piano. Le tettoie aperte almeno su un lato vanno conteggiate al 50%.","Nello sviluppo del progetto le aree delle singole attività od utenti verranno considerate solo ai fini della compartimentazione e degli affolamenti ed esodo comuni.",1.2,0,1]
["74.1","Impianti per la produzione di calore alimentati a combustibile solido, liquido o gassoso con potenzialità superiore a 116 kW","potenza totale in kW",650,"Vale solo per generatori all'aperto, per generatori in apposito locale si veda 74.2.","N.B.: la potenza totale, che costituisce il valore da inserire, è la somma delle potenze di tutti i generatori sia inferiori singolarmente a 116 kW che superiori.",null,0.95,116,1]
["74.2","Impianti per la produzione di calore alimentati a combustibile solido, liquido o gassoso con potenzialità superiore a 116 kW","potenza totale in kW",936,"Vale solo per generatori in apposito locale, per generatori all'aperto si veda 74.1.","N.B.: la potenza totale, che costituisce il valore da inserire, è la somma delle potenze di tutti i generatori sia inferiori singolarmente a 116 kW che superiori.",null,1.2,116,1]
[75,"Autorimesse pubbliche e private, parcheggi pluriplano e meccanizzati di superficie complessiva coperta superiore a 300 mq; locali adibiti al ricovero di natanti ed aeromobili di superficie superiore a 500 mq; depositi di mezzi rotabili (treni, tram ecc.) di superficie coperta superiore a 1.000 mq. ","superficie in mq",265.2,null,"N.B.: la superficie deve essere solo la somma delle aree lorde di piano diverse. Le tettoie aperte almeno su un lato vanno conteggiate al 50%.","Qualora ci fossero piani ripetuti uguali, quindi non sommati nella superficie, per ognuno di essi si valuterà una superficie aggiuntiva pari al 10% di quella del piano.",0.65,0,1]
[76,"Tipografie, litografie, stampa in offset ed attività similari con oltre cinque addetti. ","superficie in mq",390,null,"N.B.: la superficie deve essere solo la somma delle aree lorde di piano diverse. Le tettoie aperte almeno su un lato vanno conteggiate al 50%.","Qualora ci fossero piani ripetuti uguali, quindi non sommati nella superficie, per ognuno di essi si valuterà una superficie aggiuntiva pari al 10% di quella del piano.",0.65,0,1]
[77,"Edifici destinati ad uso civile con altezza antincendio superiore a 24 m ","superficie in mq",624,null,"N.B.: la superficie deve essere solo la somma delle aree lorde di piano diverse. Le tettoie aperte almeno su un lato vanno conteggiate al 50%.","Qualora ci fossero piani ripetuti uguali, quindi non sommati nella superficie, per ognuno di essi si valuterà una superficie aggiuntiva pari al 10% di quella del piano.",1.2,0,1]
["78.1","Aerostazioni, stazioni ferroviarie, stazioni marittime, con superficie coperta accessibile al pubblico superiore a 5.000 mq; metropolitane in tutto o in parte sotterranee. ","superficie in mq",78,"Vale solo per aerostazioni, stazioni ferroviarie, stazioni marittime, per stazioni metropolitane si veda 78.2. ","Le tettoie aperte almeno su un lato vanno conteggiate al 50%.","N.B.: la superficie deve essere solo la somma delle aree lorde di piano diverse, senza considerare le aree scoperte od altre attività soggette.",1.2,0,1]
["78.2","Aerostazioni, stazioni ferroviarie, stazioni marittime, con superficie coperta accessibile al pubblico superiore a 5.000 mq; metropolitane in tutto o in parte sotterranee. ","superficie in mq",78,"Vale solo per stazioni metropolitane, per aerostazioni, ferroviarie o marittime si veda 78.1.","Le tettoie aperte almeno su un lato vanno conteggiate al 50%.","N.B.: la superficie deve essere solo la somma delle aree lorde di piano diverse, senza considerare le gallerie e le aree di transito dei convogli.",1.2,0,1]
[79,"Interporti con superficie superiore a 20.000 mq  ","superficie in mq",156,null,"Mentre la superficie su cui valutare l'assogettabilità è l'area complessiva che comprende tutto l'interporto (edifici, aree di transito e di deposito ecc.) la superficie da inserire come valore di calcolo deve essere solo la somma delle aree lorde degli edifici, anche tettoie, che non costituiscono altre attività soggette (come uffici, CT, depositi ecc).",null,1.2,0,1]
[80,"Gallerie stradali di lunghezza superiore a 500 m e ferroviarie superiori a 2000 m  ","lunghezza in m",234,null,null,null,0.65,0,1]
["XX","Qualsiasi ProgettoVVF per il quale si adotta il valore dell'opera per ottenere il CP","valore opera in €",1,null,"Industrie correnti  e civili rurali G=0,65.  Edifici residenziali ordinari, scuole materne G=0,95.\nIndustrie ordinarie con impiantii, manutenzione G=0,95  Scuole superiori G=1,15\nAlberghi, edifici civili pregiati, uffici, ospedali, università, cinema, teatri G=1,20\nManutenzione edifici storici non soggetti alla Soprintendenza G=1,20 invece se soggetti G=1,55\n",null,{"$f":"Operativo!C10","v":1.2},0,0]

{"sheet":"Foglio1","index":1,"n_rows":10,"n_cols":11,"rows_kept":10,"cut":false,"hidden":true,"merged":[]}
["Attività","Descrizione ","UM","Valore","Limiti","Valore di calcolo","MOLTIPLICATORE","G","VALORE OPERA","Tariffa","Tariffa arr."]
[{"$f":"Operativo!A6","v":"XX"},{"$f":"VLOOKUP(A2,Tabella!A2:I123,2,FALSE)","v":"Qualsiasi ProgettoVVF per il quale si adotta il valore dell'opera per ottenere il CP"},{"$f":"VLOOKUP(A2,Tabella!A2:I123,3,FALSE)","v":"valore opera in €"},{"$f":"Operativo!D6","v":2850100},{"$f":"VLOOKUP(A2,Tabella!A2:I123,9,FALSE)","v":0},{"$f":"IF(D2-E2>0,D2-E2,1)","v":2850100},{"$f":"VLOOKUP(A2,Tabella!A2:I123,4,FALSE)","v":1},{"$f":"VLOOKUP(A2,Tabella!A2:I123,8,FALSE)","v":1.2},{"$f":"IF(E5=1,F2*G2*Operativo!E3/100,I5)","v":2850100},{"$f":"((0.03+10/I2^0.4)*100)*I2*H2*0.065*1.25/100+(1200*Operativo!E3/100)","v":17074.611351345531},{"$f":"IF(E5=1,ROUND(J2/100,0)*100,ROUND(J5/100,0)*100)","v":17100}]
[null,{"$f":"VLOOKUP(A2,Tabella!A2:I123,5,FALSE)","v":0}]
[null,{"$f":"VLOOKUP(A2,Tabella!A2:I123,6,FALSE)","v":"Industrie correnti  e civili rurali G=0,65.  Edifici residenziali ordinari, scuole materne G=0,95.\nIndustrie ordinarie con impiantii, manutenzione G=0,95  Scuole superiori G=1,15\nAlberghi, edifici civili pregiati, uffici, ospedali, università, cinema, teatri G=1,20\nManutenzione edifici storici non soggetti alla Soprintendenza G=1,20 invece se soggetti G=1,55\n"},null,null,"formula = 1 calcola\nformula = 0 no",null,null,null,"VALORE OPERA"]
[null,{"$f":"VLOOKUP(A2,Tabella!A2:I123,7,FALSE)","v":0},null,null,{"$f":"VLOOKUP(A2,Tabella!A2:J123,10,FALSE)","v":0},null,null,null,{"$f":"D2","v":2850100},{"$f":"((0.03+10/I5^0.4)*100)*I5*H2*0.065*1.25/100+(1200*Operativo!E3/100)","v":17074.611351345531}]
[]
[]
[null,{"$f":"INT(I2)","v":2850100},{"$f":"ROUND(B8/1000,1)*1000","v":2850100},{"$f":"TEXT(C8,\"€ #.#\")","v":"€ 2.850.100"}]
[]
["Nascondi"]

{"sheet":"Operativo","index":2,"n_rows":19,"n_cols":7,"rows_kept":19,"cut":false,"hidden":false,"merged":[[13,0,13,4],[12,0,12,4],[11,0,11,4],[7,1,7,4],[8,1,8,4],[0,0,0,2],[1,0,1,2],[2,0,2,2],[6,1,6,4],[0,3,0,4]]}
["PROGETTOVVF 2026 -                            La sola prima cifra nell'attività indica lo stesso numero dell'attività dell'Allegato I  DPR 151/2011",null,null,"Indice Istat "]
["L'eventuale lettera a seguire (a o b) indica la diversa tipologia come presente per alcune attività nell'Allegato I DPR 151/2011",null,null,"anno 1995","gennaio 2026"]
["L'eventuale ultima cifra differenzia il calcolo di CP in funzione della specificità identificata nella riga \"Particolarità\"",null,null,100,121.8]
["Attività","Descrizione ","UM","VALORE","CP  (compenso) €"]
[null,{"$f":"IF(D6>0,\"Moltiplicatore del valore di riferimento = \"&Foglio1!G2&\"; Grado di complessità = \"&Foglio1!H2&\"; Stima valore opere =  \"&Foglio1!D8,\"\")","v":"Moltiplicatore del valore di riferimento = 1; Grado di complessità = 1,2; Stima valore opere =  € 2.850.100"},"unità  misura","di riferimento > 0","compreso oneri"]
["XX",{"$f":"Foglio1!B2","v":"Qualsiasi ProgettoVVF per il quale si adotta il valore dell'opera per ottenere il CP"},{"$f":"Foglio1!C2","v":"valore opera in €"},2850100,{"$f":"IF(D6>0,Foglio1!K2,\"ERRORE VALORE\")","v":17100}]
["Particolarità",{"$f":"IF(Foglio1!B3=0,\"\",Foglio1!B3)","v":""},null,null,null,null,{"$f":"IF(Foglio1!B3=0,\"\",Foglio1!B3)","v":""}]
[null,{"$f":"IF(Foglio1!B4=0,\"\",Foglio1!B4)","v":"Industrie correnti  e civili rurali G=0,65.  Edifici residenziali ordinari, scuole materne G=0,95.\nIndustrie ordinarie con impiantii, manutenzione G=0,95  Scuole superiori G=1,15\nAlberghi, edifici civili pregiati, uffici, ospedali, università, cinema, teatri G=1,20\nManutenzione edifici storici non soggetti alla Soprintendenza G=1,20 invece se soggetti G=1,55\n"},null,null,null,null,{"$f":"IF(Foglio1!B4=0,\"\",Foglio1!B4)","v":"Industrie correnti  e civili rurali G=0,65.  Edifici residenziali ordinari, scuole materne G=0,95.\nIndustrie ordinarie con impiantii, manutenzione G=0,95  Scuole superiori G=1,15\nAlberghi, edifici civili pregiati, uffici, ospedali, università, cinema, teatri G=1,20\nManutenzione edifici storici non soggetti alla Soprintendenza G=1,20 invece se soggetti G=1,55\n"}]
[null,{"$f":"IF(Foglio1!B5=0,\"\",Foglio1!B5)","v":""},null,null,null,null,{"$f":"IF(Foglio1!B5=0,\"\",Foglio1!B5)","v":""}]
[null,"Inserisci nella cella verde C10 il valore di G che ricavi dalle righe soprastanti",1.2]
[null,{"$f":"IF(A6=\"\",\"  ERRORE NON E' POSSIBILE INSERIRE VALORI NELLA CELLA A6 SE NON CON L'USO DELL'ELENCO A DISCESA - RIPROVA\",\"\")","v":""}]
["CP.F1.VVF.OIM.2026.xlsm: documento approvato nel 2023 dalla Commissione Sicurezza Antincendio dell’Ordine Ingegneri di Milano; approvato nel 2023 dalla Commissione\n"]
["Pareri dell'Ordine Ingegneri di Milano e adottato dal Consiglio Ordine Ingegneri di Milano  nella seduta del 17.1.2024. Aggiornamento 2025 deliberato nella riunione del"]
["Consiglio Ordine Ingegneri di Milano il 7.5.2025 e successivamente nella seduta del 26.11.2025 con approvazione del 23.12.2025."]
[]
[]
[]
[]
["Nascondi"]